bitfinex/quotes_ETHUSD_20241203
["timestamp","ask_amount","ask_price","bid_price","bid_amount"]
[1733243554469,1.53415536,3584.2,3583.7,2.79041]
[1733243554668,1.5062,3584.2,3583.8,2.79032]
[1733243554868,0.02795536,3584.1,3583.8,2.79032]
[1733243555066,1.5062,3584.2,3584.0,2.79017]
[1733243555267,1.5062,3584.2,3584.1,2.7901]
[1733243555619,1.5815,3584.9,3584.3,2.78989]
[1733243555783,1.5815,3584.9,3584.6,2.78969]
[1733243556177,1.5815,3584.9,3584.8,2.78955]
[1733243556373,1.5186,3585.7,3585.1,2.7893]
[1733243556602,1.5186,3585.7,3585.2,2.78924]
[1733243556843,0.02795536,3585.6,3584.7,2.78959]
[1733243557056,1.5186,3585.7,3585.4,2.78907]
[1733243557252,1.5186,3585.7,3584.8,0.278959]
[1733243557468,1.5186,3585.7,3584.4,4.31475]
[1733243557469,1.5186,3585.7,3584.4,1.5249]
[1733243557755,1.5186,3585.7,3585.4,2.78901]
[1733243557959,1.5186,3585.7,3584.6,2.78971]
[1733243558257,1.5186,3585.7,3585.4,2.78901]
[1733243558558,1.5186,3585.7,3584.4,1.5249]
[1733243558756,1.5186,3585.7,3585.2,2.7892]
[1733243559660,1.5186,3585.7,3584.5,0.15249]
[1733243559862,0.02795536,3585.6,3584.5,0.15249]
[1733243560062,1.5173,3585.3,3584.5,2.78976]
[1733243560359,1.5173,3585.3,3584.6,2.78967]
[1733243560582,1.5173,3585.3,3584.6,2.78964]
[1733243560762,1.5173,3585.3,3584.0,1.5167]
[1733243560763,0.02795536,3585.2,3584.5,2.78978]
[1733243560948,1.5173,3585.3,3584.5,2.78978]
[1733243561156,0.53400958,3585.2,3584.5,2.78978]
[1733243561366,1.54525536,3585.3,3584.5,2.78978]
[1733243561570,1.649,3584.8,3584.0,2.79016]
[1733243561793,0.02795536,3584.7,3583.7,2.79033]
[1733243562084,0.02795536,3584.7,3583.0,2.79093]
[1733243562085,1.6039,3584.4,3583.0,2.79095]
[1733243562266,0.78984356,3584.3,3583.1,0.279095]
[1733243562797,0.78984356,3584.3,3583.5,2.79051]
[1733243563339,0.78984356,3584.3,3583.3,2.79072]
[1733243563790,0.7618882,3584.3,3583.5,2.79056]
[1733243564372,0.78984356,3584.3,3583.3,2.79067]
[1733243564561,0.78984356,3584.3,3583.4,2.79062]
[1733243564759,0.84088756,3584.2,3583.4,2.79062]
[1733243564948,1.6095,3584.0,3582.8,2.79111]
[1733243565154,1.6095,3584.0,3583.4,2.79063]
[1733243565358,1.6095,3584.0,3582.8,2.79111]
[1733243565609,1.6095,3584.0,3582.9,0.435931]
[1733243565913,1.6095,3584.0,3583.0,2.79095]
[1733243566109,1.6095,3584.0,3583.2,2.79074]
[1733243566405,1.6095,3584.0,3582.9,3.226901]
[1733243566711,1.6095,3584.0,3582.9,0.435931]
[1733243566857,1.6095,3584.0,3583.2,2.79078]
[1733243567185,1.6095,3584.0,3583.0,0.3227021]
[1733243567386,1.6095,3584.0,3583.8,2.79033]
[1733243567900,1.6095,3584.0,3583.3,2.79071]
[1733243568085,1.6095,3584.0,3583.7,2.79037]
[1733243568673,0.02795536,3583.9,3583.4,2.79057]
[1733243569015,1.6095,3584.0,3583.9,0.02860475]
[1733243569160,1.77045,3584.0,3583.9,0.02860475]
[1733243569598,1.77045,3584.0,3583.2,2.79079]
[1733243569805,1.77045,3584.0,3583.0,2.79095]
[1733243570098,1.77045,3584.0,3583.0,2.79088]
[1733243570253,1.77045,3584.0,3582.6,1.5682]
[1733243570462,1.77045,3584.0,3583.1,2.79085]
[1733243570687,1.77045,3584.0,3583.2,2.79077]
[1733243571074,1.79840536,3584.0,3582.7,0.435961]
[1733243571297,1.79840536,3584.0,3582.8,2.79109]
[1733243571500,1.79840536,3584.0,3582.2,1.5801]
[1733243571702,1.79840536,3584.0,3582.9,2.79096]
[1733243572410,1.5682,3583.9,3582.9,2.79098]
[1733243572612,0.02795536,3583.8,3583.0,2.79092]
[1733243572767,0.17571054,3583.7,3583.0,2.79092]
[1733243573580,0.17571054,3583.7,3582.3,2.79142]
[1733243573817,1.5682,3583.5,3582.3,2.79142]
[1733243574370,0.02795536,3583.4,3582.4,2.79142]
[1733243574708,0.02795536,3583.4,3582.3,2.79142]
[1733243574709,0.02795536,3583.4,3582.7,2.79116]
[1733243575211,0.52766815,3583.4,3582.8,2.79111]
[1733243575524,0.52766815,3583.4,3582.2,1.5801]
[1733243575741,0.29048435,3583.3,3582.6,2.79124]
[1733243576029,1.5828,3583.1,3582.6,2.79124]
[1733243576240,0.02795536,3583.0,3582.2,2.79156]
[1733243576533,0.2152838,3583.0,3581.5,0.279214]
[1733243576887,0.2152838,3583.0,3582.1,2.79164]
[1733243577193,0.2152838,3583.0,3581.5,0.279214]
[1733243577194,1.5683,3582.9,3581.5,0.279214]
[1733243577403,0.02795536,3582.8,3581.5,0.279214]
[1733243577605,0.52883994,3582.8,3582.0,2.79172]
[1733243577984,1.5252,3582.7,3581.3,1.6658]
[1733243578204,0.02795536,3582.6,3581.8,2.79185]
[1733243578599,0.1455233,3582.5,3581.9,2.7918]
[1733243578850,0.1455233,3582.5,3581.6,2.79197]
[1733243579146,1.5252,3582.3,3581.7,2.79196]
[1733243579376,0.02795536,3582.2,3580.8,1.5965]
[1733243579531,0.02795536,3582.2,3581.8,2.79188]
[1733243579706,1.5252,3582.3,3581.8,2.79188]
[1733243580208,1.5252,3582.3,3580.8,1.5965]
[1733243580425,1.5252,3582.3,3581.7,2.7919]
[1733243580943,1.55315536,3582.3,3581.7,2.7919]
[1733243581453,1.55315536,3582.3,3581.8,2.79188]
[1733243581750,1.55315536,3582.3,3581.0,2.79251]
[1733243581751,1.5252,3582.3,3581.0,2.79251]
[1733243582251,1.5252,3582.3,3581.6,2.79202]
[1733243582552,1.69506787,3582.3,3580.9,1.19609886]
[1733243582719,1.59565536,3582.2,3581.4,2.79213]
[1733243583330,1.59565536,3582.2,3580.5,1.5589]
[1733243583652,1.6497,3582.0,3581.2,2.79232]
[1733243583859,1.67765536,3581.9,3581.2,2.79232]
[1733243584010,2.13999174,3581.9,3581.2,2.79232]
[1733243584212,2.13999174,3581.9,3580.1,1.5492]
[1733243584510,1.6497,3581.9,3581.5,2.79204]
[1733243584714,1.6497,3581.9,3581.2,2.79236]
[1733243584961,1.6497,3581.9,3580.9,1.5946]
[1733243585684,1.6497,3581.9,3580.9,4.38715]
[1733243585826,1.6497,3581.9,3581.0,1.438715]
[1733243586211,0.02795536,3581.8,3581.1,2.79237]
[1733243586412,1.6497,3581.9,3581.1,2.79237]
[1733243586622,1.6497,3581.9,3581.0,1.438715]
[1733243586861,0.02795536,3581.8,3580.7,10.0]
[1733243587064,1.6497,3581.9,3581.0,2.7925]
[1733243587276,1.67765536,3581.9,3581.0,2.7925]
[1733243588116,1.67765536,3581.9,3580.7,10.0]
[1733243588313,1.67765536,3581.9,3581.0,2.79249]
[1733243588514,0.76945874,3581.8,3580.7,10.0]
[1733243588833,1.5572,3581.6,3580.9,2.79257]
[1733243589163,0.02795536,3581.5,3580.9,2.79257]
[1733243589365,0.02795536,3581.5,3580.7,12.79271]
[1733243589520,0.02795536,3581.5,3580.8,2.79266]
[1733243589721,1.5572,3581.6,3580.7,10.0]
[1733243590033,2.04838946,3581.6,3581.0,2.7925]
[1733243590227,2.04838946,3581.6,3580.9,2.79258]
[1733243590550,1.5572,3581.6,3581.0,2.79249]
[1733243590762,1.5572,3581.6,3580.8,2.79267]
[1733243590960,1.5572,3581.6,3580.9,2.79259]
[1733243591272,1.5572,3581.6,3580.7,10.0]
[1733243591432,1.5572,3581.6,3580.9,2.79254]
[1733243591835,1.7436709,3581.6,3580.7,12.79273]
[1733243592073,1.7436709,3581.6,3580.7,10.0]
[1733243592229,1.71571554,3581.6,3580.7,10.0]
[1733243592573,1.5572,3581.6,3581.3,2.79223]
[1733243592736,0.02795536,3581.5,3580.7,10.0]
[1733243593282,1.5349,3581.4,3580.7,10.0]
[1733243593485,0.02795536,3581.3,3580.7,10.0]
[1733243594584,0.02795536,3581.3,3580.7,12.79274]
[1733243594934,0.02795536,3581.3,3580.7,10.0]
[1733243595175,1.5349,3581.2,3580.7,10.0]
[1733243595868,1.5349,3581.2,3580.9,2.79257]
[1733243596045,1.5349,3581.2,3580.7,12.79272]
[1733243596267,0.02795536,3581.1,3580.7,10.0]
[1733243596449,2.5572805,3580.9,3580.7,10.0]
[1733243596663,1.92304359,3580.8,3580.7,10.0]
[1733243597010,1.5132,3580.8,3580.7,10.0]
[1733243597879,0.2,3582.4,3580.7,10.0]
[1733243597880,2.79205,3581.6,3580.7,10.0]
[1733243598080,1.82947587,3581.5,3580.7,12.79268]
[1733243598268,1.56935536,3581.5,3580.7,10.0]
[1733243598642,0.26016054,3581.4,3580.7,12.79273]
[1733243598870,1.56935536,3581.5,3580.7,12.79273]
[1733243599189,0.14545418,3581.3,3580.7,12.79273]
[1733243599690,0.14545418,3581.3,3580.9,2.79253]
[1733243600237,0.14545418,3581.3,3580.7,10.0]
[1733243600238,0.14545418,3581.3,3581.2,2.79236]
[1733243601148,1.66935418,3581.3,3581.0,2.79246]
[1733243601357,1.66935418,3581.3,3580.7,10.0]
[1733243601597,4.0811805,3581.1,3580.7,10.0]
[1733243601794,1.5239,3580.9,3580.7,10.0]
[1733243603109,1.5239,3580.9,3580.7,9.99240401]
[1733243606439,1.81408302,3580.9,3580.7,9.99240401]
[1733243607699,0.29018302,3580.9,3580.7,9.99240401]
[1733243607907,0.29018302,3580.9,3580.8,2.79267]
[1733243608085,0.29018302,3580.9,3580.7,9.99240401]
[1733243609943,0.29018302,3580.9,3580.8,2.79267]
[1733243610091,0.29018302,3580.9,3580.7,9.99240401]
[1733243610604,0.02795536,3581.2,3580.7,9.99240401]
[1733243610800,0.72025447,3581.1,3580.7,9.99240401]
[1733243611042,0.02795536,3581.2,3580.7,9.99240401]
[1733243611336,4.4005,3580.9,3580.7,9.99240401]
[1733243611554,0.26073809,3580.8,3580.7,9.99240401]
[1733243612990,1.6079,3580.9,3580.7,9.99240401]
[1733243613225,0.26090575,3580.8,3580.7,9.99240401]
[1733243613462,1.65145418,3581.3,3580.7,10.79399964]
[1733243613661,0.26089141,3581.2,3581.1,2.79243]
[1733243613840,0.26089141,3581.2,3580.7,13.58670964]
[1733243613841,0.14545418,3581.3,3581.2,2.79236]
[1733243614050,0.40632399,3581.3,3581.0,2.79248]
[1733243614245,0.02795536,3581.7,3580.9,2.79252]
[1733243614443,0.26090084,3581.6,3580.9,2.79252]
[1733243614649,0.26090084,3581.5,3581.0,2.79251]
[1733243614872,0.26090084,3581.4,3581.1,2.79239]
[1733243615156,0.14541779,3581.7,3580.7,10.79399964]
[1733243615157,0.02795536,3581.3,3580.8,2.79259]
[1733243615365,0.17337315,3581.7,3580.8,2.79259]
[1733243615529,0.70809456,3581.6,3580.8,2.79259]
[1733243615732,0.70809456,3581.6,3580.7,9.99240401]
[1733243615733,0.2889316,3581.5,3580.7,9.99240401]
[1733243615929,0.26097624,3581.4,3580.7,9.99240401]
[1733243616161,4.3992121,3581.3,3580.7,9.99240401]
[1733243616367,0.26097624,3581.2,3580.7,9.99240401]
[1733243616532,0.26105455,3581.1,3581.0,2.7925]
[1733243616718,0.14541779,3581.7,3581.0,2.7925]
[1733243617116,0.26104752,3581.6,3581.4,2.79213]
[1733243617282,0.26104752,3581.5,3581.4,2.79213]
[1733243617566,0.14541779,3581.7,3581.1,2.79239]
[1733243617774,0.14541779,3581.7,3581.5,2.79206]
[1733243618373,1.5065,3582.3,3581.5,2.79208]
[1733243618573,0.26104637,3582.2,3581.5,2.79208]
[1733243618742,0.26104637,3582.1,3581.5,2.79208]
[1733243618923,0.26104637,3582.0,3581.5,2.79208]
[1733243619119,0.26104637,3581.9,3581.5,2.79208]
[1733243619324,0.26104637,3581.8,3581.5,2.79208]
[1733243619524,1.65188779,3582.3,3581.5,2.79208]
[1733243619765,0.26106182,3582.2,3581.5,2.79208]
[1733243619967,2.35473416,3582.3,3581.5,2.79208]
[1733243620171,0.26106163,3582.2,3581.5,2.79208]
[1733243620378,0.26106163,3582.1,3581.4,2.79217]
[1733243620525,0.26106163,3582.0,3580.8,1.6042]
[1733243620727,0.26106163,3581.9,3581.8,2.79189]
[1733243620953,0.26106163,3582.2,3581.6,2.79204]
[1733243621264,0.14538779,3582.3,3581.9,2.79179]
[1733243621947,0.14538779,3582.3,3581.5,1.6042]
[1733243622153,0.14538779,3582.3,3581.6,0.16042]
[1733243622384,0.14538779,3582.3,3581.9,2.79174]
[1733243622588,0.14538779,3582.3,3582.0,2.79166]
[1733243623018,0.2913502,3583.1,3581.7,0.02791754]
[1733243623301,1.83474319,3583.0,3582.0,1.5985]
[1733243623609,0.26082618,3582.9,3582.6,2.79126]
[1733243623749,0.2913502,3583.1,3582.8,2.79111]
[1733243623951,0.2913502,3583.1,3582.1,0.15985]
[1733243623952,0.2913502,3583.1,3582.9,2.79096]
[1733243624677,0.2913502,3583.1,3582.2,2.79158]
[1733243624879,0.2913502,3583.1,3582.3,4.625393]
[1733243625102,0.2913502,3583.1,3582.6,2.79124]
[1733243625398,0.02795536,3583.0,3582.3,1.5388]
[1733243625550,0.55,3582.9,3582.2,2.79155]
[1733243625754,0.55,3582.9,3581.9,1.5826]
[1733243625755,0.55,3582.9,3582.0,2.79171]
[1733243626050,0.77675861,3582.8,3581.9,1.5826]
[1733243626763,0.77675861,3582.8,3581.6,1.5387]
[1733243627120,1.6585,3582.7,3581.8,2.79182]
[1733243627264,0.02795536,3582.6,3581.8,2.79182]
[1733243628386,0.02795536,3582.6,3581.6,1.5387]
[1733243628554,0.2463214,3582.5,3581.8,2.79183]
[1733243628865,0.02795536,3582.4,3581.8,2.79183]
[1733243629091,0.02795536,3582.4,3581.6,2.79201]
[1733243629287,0.57795536,3582.4,3581.6,2.792]
[1733243629453,0.55,3582.1,3581.2,1.6507]
[1733243629654,0.55,3581.9,3580.8,1.6507]
[1733243629871,1.61455536,3581.8,3581.0,2.79251]
[1733243630053,1.61455536,3581.8,3580.8,4.44334]
[1733243630276,1.61455536,3581.8,3581.1,2.79242]
[1733243630473,1.5866,3581.8,3581.1,2.79242]
[1733243630648,1.5866,3581.8,3581.2,2.79235]
[1733243631054,1.5866,3581.8,3580.8,1.6507]
[1733243631280,2.1261,3582.4,3581.5,2.79211]
[1733243631803,1.5761,3582.4,3581.5,1.5801]
[1733243632007,1.5761,3582.4,3582.0,2.79169]
[1733243632893,1.5761,3582.4,3582.1,2.79164]
[1733243633459,1.6564,3582.9,3582.2,2.79153]
[1733243633699,1.6564,3582.9,3582.3,2.79143]
[1733243634201,0.02795536,3582.8,3581.7,2.79197]
[1733243634400,0.02795536,3582.8,3581.8,0.437207]
[1733243634697,0.02795536,3582.8,3582.2,2.79156]
[1733243635271,0.02795536,3582.8,3581.8,0.437207]
[1733243635474,0.02795536,3582.8,3582.1,2.79159]
[1733243636113,0.57795536,3582.8,3582.1,2.79159]
[1733243636311,0.57795536,3582.8,3582.2,2.79157]
[1733243636486,0.29134225,3582.7,3582.4,2.79135]
[1733243637307,0.74477423,3582.6,3582.0,2.79168]
[1733243638024,0.55,3582.4,3581.5,1.5801]
[1733243638225,0.02795536,3582.3,3581.5,1.5801]
[1733243638531,0.55,3582.4,3581.8,2.79186]
[1733243639297,0.55,3582.4,3581.6,2.792]
[1733243639591,0.55,3582.4,3581.5,2.79209]
[1733243639592,1.5564,3582.2,3581.5,2.79209]
[1733243639820,0.02795536,3582.1,3581.6,2.79201]
[1733243640638,0.57795536,3582.1,3581.4,2.79217]
[1733243640803,0.57795536,3582.1,3580.9,3.0897804]
[1733243640804,0.55,3582.1,3580.9,3.0897804]
[1733243641015,0.55,3582.1,3581.7,2.79195]
[1733243641340,0.81273766,3582.1,3580.9,3.0897804]
[1733243641557,1.5564,3582.0,3581.1,2.7924]
[1733243641693,1.5564,3582.0,3581.9,2.79181]
[1733243641896,0.26062824,3582.6,3581.4,2.5572805]
[1733243642212,0.29134225,3582.7,3582.6,2.79126]
[1733243644052,0.29134225,3582.7,3582.5,2.79133]
[1733243644218,0.29134225,3582.7,3582.6,2.79126]
[1733243644655,0.29134225,3582.7,3582.6,3.35232728]
[1733243645010,0.29134225,3582.7,3582.6,2.79126]
[1733243646552,0.29134225,3582.7,3582.6,4.45166]
[1733243646750,0.26098233,3583.7,3583.2,2.7908]
[1733243646959,0.26098233,3583.6,3583.4,2.79058]
[1733243647324,0.29140893,3583.6,3583.2,2.79073]
[1733243647471,0.29140893,3583.6,3582.7,2.79119]
[1733243647472,0.26095931,3583.5,3582.7,2.79119]
[1733243647640,0.26095931,3583.5,3583.4,2.79064]
[1733243647846,0.29140893,3583.6,3583.5,2.79056]
[1733243649085,0.84140893,3583.6,3583.5,2.79056]
[1733243649235,0.55,3583.5,3582.6,1.6604]
[1733243649430,0.55,3583.3,3582.3,1.5103]
[1733243649662,1.6085,3583.1,3582.3,2.79143]
[1733243649975,1.6085,3583.1,3581.3,5.3495505]
[1733243649976,0.55,3582.8,3581.7,4.30226]
[1733243650182,0.55,3582.8,3582.2,2.79155]
[1733243650333,0.21864554,3582.7,3582.2,2.79155]
[1733243650533,0.55,3582.6,3581.7,1.5103]
[1733243650735,0.55,3582.4,3581.7,2.79195]
[1733243651338,0.55,3582.2,3581.7,2.79195]
[1733243651539,1.6085,3582.1,3581.0,1.5103]
[1733243651735,0.7966009,3582.0,3581.0,1.5103]
[1733243651982,0.7966009,3582.0,3581.1,2.79236]
[1733243652183,0.7966009,3582.0,3580.7,12.78510401]
[1733243652184,0.76864554,3582.0,3580.7,9.99240401]
[1733243652387,0.76864554,3582.0,3581.4,2.79213]
[1733243652758,0.76864554,3582.0,3581.1,2.79238]
[1733243653102,0.55,3581.8,3580.9,2.79257]
[1733243653383,0.91680895,3581.4,3581.3,2.79228]
[1733243653590,0.26099082,3581.8,3580.8,1.5284]
[1733243653795,0.28894618,3582.2,3580.8,1.5284]
[1733243653960,0.26099082,3582.1,3580.8,1.5284]
[1733243656355,0.02795536,3582.4,3581.7,2.79195]
[1733243656554,1.5547,3582.3,3581.0,1.5111]
[1733243656780,1.5547,3582.3,3581.8,2.79188]
[1733243657298,1.5547,3582.3,3581.0,1.5111]
[1733243657299,0.55,3582.2,3581.1,2.79236]
[1733243657491,0.55,3582.2,3581.0,1.5111]
[1733243657492,0.02795536,3582.1,3581.4,2.7922]
[1733243657782,0.83871636,3582.2,3581.4,2.7922]
[1733243658143,0.55,3582.0,3580.9,1.1520804]
[1733243658344,0.02795536,3581.9,3581.2,2.79232]
[1733243658618,0.55,3582.0,3580.9,1.1520804]
[1733243658779,0.55,3582.0,3581.6,2.79203]
[1733243658987,1.5547,3582.1,3581.1,2.79243]
[1733243659294,1.5547,3582.1,3581.9,2.79174]
[1733243659497,1.5547,3582.1,3581.2,3.34730104]
[1733243659706,0.57795536,3582.0,3581.2,0.55501104]
[1733243659872,0.55,3582.0,3581.8,2.79186]
[1733243660069,1.5547,3582.1,3581.2,0.55501104]
[1733243660299,0.57795536,3582.0,3581.2,2.79233]
[1733243660505,0.55,3581.8,3581.0,2.79249]
[1733243660715,0.55,3581.8,3581.2,2.79235]
[1733243660870,0.55,3581.8,3581.3,2.79225]
[1733243661210,0.55,3581.8,3581.2,2.79234]
[1733243661511,0.55,3581.8,3581.4,2.79219]
[1733243661719,0.55,3581.8,3581.2,2.79233]
[1733243661868,0.55,3581.8,3580.8,2.79263]
[1733243662225,0.55,3581.8,3581.2,2.79229]
[1733243662375,0.29145762,3581.7,3581.3,2.79223]
[1733243662716,0.29145762,3581.7,3580.9,1.4433834]
[1733243663412,0.29145762,3581.7,3581.6,2.79204]
[1733243664773,0.84145762,3581.7,3581.6,2.79204]
[1733243666389,0.84145762,3581.7,3581.6,3.350466]
[1733243666602,0.29145762,3581.7,3581.6,3.350466]
[1733243670285,0.29145762,3581.7,3581.6,2.79204]
[1733243670481,0.55,3581.6,3581.4,2.79218]
[1733243670881,0.55,3581.6,3581.5,2.79212]
[1733243672284,0.29145762,3581.7,3581.6,2.79204]
[1733243674398,1.5807,3582.9,3581.7,2.55498543]
[1733243674599,1.5807,3582.9,3582.3,2.79146]
[1733243674823,1.5807,3582.9,3582.3,2.79142]
[1733243674987,0.02795536,3582.8,3582.3,2.79142]
[1733243675194,0.02795536,3582.8,3582.1,2.79159]
[1733243675394,1.5807,3582.9,3582.2,2.79157]
[1733243675593,0.55,3582.8,3582.2,2.79157]
[1733243675815,0.55,3582.8,3581.8,3.48519054]
[1733243675816,0.02795536,3582.7,3582.0,2.79165]
[1733243676018,0.02795536,3582.7,3581.8,0.69331054]
[1733243676019,0.55,3582.5,3581.6,1.586]
[1733243676231,0.55,3582.3,3581.1,2.79243]
[1733243676442,0.55,3582.3,3581.3,2.79228]
[1733243676635,0.55,3582.3,3582.2,2.79158]
[1733243676933,0.55,3582.3,3581.4,1.5062]
[1733243676934,0.55,3582.6,3582.5,2.79127]
[1733243677246,0.55,3582.6,3582.4,2.79139]
[1733243677391,0.55,3582.6,3581.8,1.5324]
[1733243677591,0.55,3582.6,3582.2,2.79151]
[1733243677791,0.55,3582.6,3582.0,2.79173]
[1733243678033,0.55,3582.9,3582.5,2.79134]
[1733243678335,0.55,3582.9,3582.7,2.79119]
[1733243679149,0.55,3582.9,3582.7,2.79116]
[1733243679716,0.55,3582.9,3582.5,2.79131]
[1733243679913,0.55,3582.9,3582.7,2.79118]
[1733243680541,0.55,3582.9,3582.8,2.79111]
[1733243680755,0.81105536,3583.2,3582.8,2.79111]
[1733243681046,0.55,3583.2,3582.4,1.5155]
[1733243681242,0.55,3583.2,3582.5,0.70985]
[1733243681814,0.02795536,3583.1,3582.2,2.7915]
[1733243682016,0.02795536,3583.1,3582.3,2.79149]
[1733243682203,0.55,3582.9,3582.3,2.79149]
[1733243682405,0.57795536,3582.9,3582.3,2.79149]
[1733243682642,0.55,3582.9,3582.3,2.79149]
[1733243682800,0.23885995,3582.8,3582.1,2.79163]
[1733243683005,0.55,3582.5,3581.5,2.79207]
[1733243683206,0.55,3582.5,3581.7,2.79192]
[1733243684049,0.55,3582.1,3581.2,0.82969988]
[1733243684341,0.55,3582.1,3580.9,1.5707]
[1733243684644,0.02795536,3582.0,3581.5,2.79206]
[1733243684801,0.02795536,3582.0,3580.9,1.5707]
[1733243684802,0.02795536,3582.0,3580.9,4.36326]
[1733243685000,0.02795536,3582.0,3580.9,1.5707]
[1733243685259,0.55,3582.1,3581.0,1.4355784]
[1733243685437,0.55,3582.1,3581.9,2.79174]
[1733243685609,0.55,3582.1,3581.6,1.4682]
[1733243685804,0.55,3582.1,3582.0,2.79173]
[1733243686115,0.55,3582.1,3581.3,2.79227]
[1733243686318,0.55,3582.1,3581.4,0.55847]
[1733243686845,0.55,3582.1,3581.5,2.79212]
[1733243687046,0.55,3582.1,3581.9,2.7918]
[1733243687248,0.55,3582.1,3581.7,2.79196]
[1733243687452,0.02795536,3582.0,3581.5,2.79208]
[1733243687661,0.02795536,3582.0,3580.9,1.6285]
[1733243687662,0.55,3581.8,3580.9,1.6285]
[1733243687805,0.81596554,3581.8,3580.7,9.99240401]
[1733243688005,1.67716855,3581.9,3581.2,1.5959]
[1733243688228,1.67716855,3581.9,3581.6,2.79204]
[1733243688229,1.5317,3581.9,3581.6,2.79204]
[1733243688436,1.5317,3581.9,3581.2,1.5959]
[1733243688634,0.55,3582.1,3581.8,2.79189]
[1733243688831,0.55,3582.1,3581.3,2.79228]
[1733243689043,0.57795536,3582.1,3581.5,2.79208]
[1733243689347,1.513,3581.8,3581.0,2.79245]
[1733243689519,0.57795536,3581.7,3581.0,2.79245]
[1733243689710,0.57795536,3581.7,3580.8,2.79264]
[1733243689907,1.513,3581.6,3580.8,2.79264]
[1733243690110,0.57795536,3581.5,3580.8,2.79264]
[1733243690353,0.57795536,3581.5,3580.7,9.99240401]
[1733243690354,1.513,3581.4,3580.7,9.99240401]
[1733243690532,0.57795536,3581.3,3580.7,9.99240401]
[1733243690848,0.55,3581.1,3580.7,9.99240401]
[1733243691614,0.55,3581.1,3580.7,9.70102526]
[1733243691954,0.55,3581.1,3580.7,12.49376526]
[1733243692467,3.08337234,3581.7,3580.7,12.49376526]
[1733243692468,0.55,3581.4,3580.7,12.49130179]
[1733243692921,0.29137234,3581.7,3581.4,2.79213]
[1733243693117,0.29137234,3581.7,3580.8,2.55498543]
[1733243693322,0.29137234,3581.7,3581.5,2.7921]
[1733243694221,0.55,3581.6,3581.3,2.79227]
[1733243694577,0.55,3581.6,3581.5,2.79212]
[1733243694719,1.46547234,3581.8,3581.5,2.79212]
[1733243695927,1.46547234,3581.8,3581.7,2.79197]
[1733243696139,1.46547234,3581.8,3581.5,2.7921]
[1733243696672,1.46547234,3581.8,3581.3,0.558471]
[1733243696673,1.46547234,3581.8,3581.4,2.79212]
[1733243696834,5.34624543,3582.6,3581.4,0.6142991]
[1733243696835,0.26099599,3582.1,3581.4,0.6142991]
[1733243697024,0.26099599,3582.5,3581.5,0.02791946]
[1733243697369,0.26099599,3582.4,3581.5,1.5399]
[1733243697536,2.81889536,3583.1,3582.0,2.79172]
[1733243697747,1.5612,3582.9,3582.0,2.79172]
[1733243697966,1.5612,3582.7,3581.8,2.79187]
[1733243698122,1.5612,3582.5,3581.5,2.79212]
[1733243698327,1.5612,3582.3,3580.9,1.5399]
[1733243698522,0.26095633,3582.2,3581.5,2.79209]
[1733243698827,0.55,3582.0,3581.5,2.79209]
[1733243699025,0.55,3582.2,3581.5,2.79209]
[1733243699266,0.55,3581.9,3581.5,2.79209]
[1733243699766,0.55,3582.0,3581.5,2.79209]
[1733243699981,0.81097101,3582.0,3581.5,2.79209]
[1733243700180,1.5212,3581.9,3580.9,1.5399]
[1733243700363,0.7832171,3581.8,3580.6,1.4891]
[1733243700879,0.7832171,3581.8,3580.6,4.28188]
[1733243701181,0.81117246,3581.8,3580.9,2.79252]
[1733243701394,0.81117246,3581.8,3580.7,9.70102526]
[1733243701395,0.55,3581.4,3580.7,9.70102526]
[1733243701542,0.55,3581.4,3580.9,2.79256]
[1733243702139,0.55,3581.4,3580.7,12.49375526]
[1733243702339,0.02795536,3581.3,3580.7,9.70102526]
[1733243702748,0.83883847,3581.4,3580.7,9.70102526]
[1733243703052,0.55,3581.0,3580.7,9.70102526]
[1733243704956,1.5269,3581.1,3580.9,2.79259]
[1733243705199,1.79940546,3581.8,3580.7,9.70102526]
[1733243705495,1.5387,3581.8,3581.2,2.79234]
[1733243706000,1.79940546,3581.8,3581.5,2.7921]
[1733243706167,1.5387,3581.8,3581.5,2.7921]
[1733243706367,1.4894,3582.1,3581.1,2.79243]
[1733243706700,0.26070546,3582.5,3581.3,1.5789]
[1733243707000,1.78470546,3582.4,3581.3,1.5789]
[1733243707155,1.78470546,3582.8,3581.6,2.79204]
[1733243707350,0.26070546,3582.7,3581.7,0.02791526]
[1733243707589,0.26070546,3583.1,3582.2,1.5789]
[1733243707826,0.30963515,3583.1,3582.9,2.79101]
[1733243708033,0.30963515,3583.1,3582.7,2.79117]
[1733243708387,0.30963515,3583.1,3582.4,2.79142]
[1733243708644,1.66948995,3583.2,3582.8,2.79109]
[1733243708939,0.02795536,3583.7,3582.4,2.79142]
[1733243708940,1.5685,3583.7,3583.1,2.79087]
[1733243709089,1.5685,3583.7,3582.9,2.79101]
[1733243709439,1.5685,3583.7,3582.5,0.02791036]
[1733243709641,1.82910393,3583.7,3582.7,2.79114]
[1733243709962,0.47927036,3583.6,3582.3,2.7915]
[1733243710142,0.57795536,3583.5,3582.2,1.5789]
[1733243710305,0.57795536,3583.5,3582.5,2.79127]
[1733243710510,0.55,3583.3,3582.7,2.79118]
[1733243710893,0.55,3583.3,3582.8,2.79109]
[1733243711088,0.29139717,3583.5,3582.4,3.2365143]
[1733243711307,1.6277,3583.8,3582.9,1.5657]
[1733243711506,1.6277,3583.8,3583.4,2.79057]
[1733243711714,1.6277,3583.8,3583.1,2.7908]
[1733243711992,1.6277,3583.8,3583.2,2.79079]
[1733243712301,1.83414549,3583.8,3583.2,2.79079]
[1733243712489,1.83414549,3583.8,3582.9,1.5657]
[1733243712888,1.83414549,3583.8,3583.3,2.79066]
[1733243714134,1.83414549,3583.8,3583.5,2.79055]